bitfinex/quotes_ETHUSD_20240729
["timestamp","ask_amount","ask_price","bid_price","bid_amount"]
[1722272871054,3.0281,3302.4,3301.2,1.05386262]
[1722272871253,6.35908,3302.4,3301.4,2.699]
[1722272871456,3.33096,3302.4,3301.4,2.699]
[1722272871797,3.02828,3302.2,3301.4,2.699]
[1722272871998,0.30281,3302.4,3301.4,2.699]
[1722272871999,3.02838,3302.1,3301.4,2.699]
[1722272872202,0.30281,3302.4,3301.4,2.699]
[1722272872369,3.02802,3302.5,3301.4,2.9689]
[1722272872709,9.77956,3303.0,3301.8,2.699]
[1722272872710,3.02781,3302.8,3301.8,2.699]
[1722272873459,3.02792,3302.6,3301.8,2.699]
[1722272873653,0.3202,3303.1,3301.8,2.699]
[1722272873883,3.02797,3302.6,3301.8,2.699]
[1722272874155,3.02777,3302.8,3301.8,2.699]
[1722272874391,3.362357,3303.0,3301.8,2.699]
[1722272874392,6.389997,3303.0,3301.8,2.699]
[1722272874698,3.02767,3302.9,3301.8,2.699]
[1722272875058,0.334757,3303.0,3301.8,2.699]
[1722272875262,3.02765,3302.9,3301.9,0.2699]
[1722272875561,3.02763,3303.0,3301.9,0.2699]
[1722272876278,3.0274,3303.2,3302.2,2.699]
[1722272876484,3.0275,3303.1,3302.2,2.699]
[1722272876665,3.0274,3303.2,3302.2,2.699]
[1722272876666,3.02756,3303.0,3302.2,2.699]
[1722272876875,3.02748,3303.1,3302.2,2.699]
[1722272877190,3.02759,3303.0,3302.2,2.699]
[1722272877691,0.605488,3303.1,3302.2,2.699]
[1722272877879,3.02747,3303.1,3302.2,2.699]
[1722272878207,3.02744,3303.2,3302.2,2.699]
[1722272878498,3.02741,3303.2,3302.2,2.699]
[1722272878712,3.02747,3303.1,3302.2,2.699]
[1722272879062,3.02731,3303.3,3302.2,2.699]
[1722272879262,3.02718,3303.4,3302.2,3.21261]
[1722272879510,0.303667,3303.9,3302.6,2.699]
[1722272879511,3.330437,3303.9,3302.6,2.699]
[1722272879661,3.02701,3303.6,3302.6,2.699]
[1722272879860,0.303667,3303.9,3302.6,2.699]
[1722272879861,3.02716,3303.5,3302.6,2.699]
[1722272880477,3.02691,3303.7,3302.6,2.699]
[1722272880704,3.02752,3303.1,3302.2,2.699]
[1722272881000,3.02761,3303.0,3302.2,2.699]
[1722272881876,6.22941,3303.2,3301.8,2.699]
[1722272882207,3.02779,3302.8,3301.8,2.699]
[1722272882714,3.202,3303.2,3301.4,2.323]
[1722272882715,3.02799,3302.6,3301.4,5.022]
[1722272883098,6.22959,3303.0,3301.8,2.699]
[1722272883407,3.02784,3302.7,3301.8,2.699]
[1722272883716,3.02791,3302.6,3301.8,2.699]
[1722272883915,3.02802,3302.5,3301.8,2.699]
[1722272884076,3.02784,3302.7,3301.8,2.699]
[1722272884281,3.630624,3302.7,3301.8,2.699]
[1722272885037,3.02816,3302.4,3301.8,2.699]
[1722272885514,3.02802,3302.5,3301.8,2.699]
[1722272885725,3.02785,3302.7,3301.8,2.699]
[1722272886013,3.02783,3302.7,3302.2,2.699]
[1722272886646,3.02786,3302.7,3301.8,2.699]
[1722272886954,3.02806,3302.5,3301.8,2.699]
[1722272887532,3.02817,3302.4,3301.8,2.699]
[1722272887844,3.330866,3302.5,3301.8,2.699]
[1722272887845,0.302806,3302.5,3301.8,2.699]
[1722272888141,3.02803,3302.5,3301.8,2.699]
[1722272888906,3.02816,3302.4,3301.8,2.699]
[1722272889950,3.0,3302.9,3301.8,2.699]
[1722272890192,3.752,3302.8,3301.4,5.022]
[1722272890446,3.02837,3302.1,3301.4,5.022]
[1722272890644,6.05647,3302.3,3301.4,5.022]
[1722272890859,3.02834,3302.2,3301.4,5.022]
[1722272891203,3.0282,3302.3,3301.4,5.022]
[1722272891645,3.02828,3302.2,3301.4,5.022]
[1722272892150,3.02805,3302.5,3301.4,5.022]
[1722272892151,3.02816,3302.4,3301.4,5.022]
[1722272892448,3.0282,3302.3,3301.4,5.022]
[1722272892746,3.02816,3302.4,3301.4,5.022]
[1722272893422,3.651055,3302.5,3301.4,5.022]
[1722272893423,3.02805,3302.5,3301.4,5.022]
[1722272893606,3.02805,3302.5,3301.8,2.699]
[1722272893906,3.02806,3302.5,3301.8,2.699]
[1722272894302,0.302806,3302.5,3301.4,5.022]
[1722272894507,3.02834,3302.2,3301.4,5.022]
[1722272894957,3.02817,3302.4,3301.4,5.022]
[1722272895108,3.02801,3302.5,3301.4,5.022]
[1722272895446,3.02801,3302.5,3301.8,2.699]
[1722272896159,0.56655,3303.1,3302.2,2.699]
[1722272896469,3.02798,3302.6,3302.2,2.699]
[1722272896624,3.02783,3302.7,3302.2,2.699]
[1722272897444,8.6928,3303.3,3302.2,2.699]
[1722272897445,3.02793,3302.6,3302.2,2.699]
[1722272897789,6.05558,3302.8,3301.8,2.699]
[1722272898062,3.02777,3302.8,3301.8,2.699]
[1722272898855,3.0276,3303.0,3301.8,2.699]
[1722272898856,3.02755,3303.0,3301.8,2.699]
[1722272899037,0.86928,3303.2,3302.2,2.699]
[1722272899214,6.05463,3303.3,3302.2,2.699]
[1722272899415,3.02747,3303.1,3302.2,2.699]
[1722272899730,3.02773,3302.8,3302.2,2.699]
[1722272900054,3.02768,3302.9,3302.2,2.699]
[1722272900411,3.02738,3303.2,3302.2,2.699]
[1722272900707,3.02738,3303.2,3302.2,2.9689]
[1722272901025,6.22922,3303.4,3302.2,2.9689]
[1722272901207,3.02741,3303.2,3302.2,2.699]
[1722272901409,3.02751,3303.1,3302.2,2.699]
[1722272901654,3.02741,3303.2,3302.2,2.699]
[1722272902455,3.02721,3303.4,3302.3,2.427]
[1722272902755,3.02702,3303.6,3302.3,2.427]
[1722272902919,0.302702,3303.5,3302.3,2.427]
[1722272903109,3.0,3303.5,3302.6,2.699]
[1722272903311,0.01,3304.0,3303.0,2.699]
[1722272903312,3.0367,3304.0,3303.0,2.699]
[1722272903629,3.02684,3303.8,3303.0,2.699]
[1722272903829,3.02701,3303.6,3303.0,2.699]
[1722272904039,3.02701,3303.6,3302.6,2.699]
[1722272904040,3.632435,3303.6,3302.6,2.699]
[1722272904250,3.632435,3303.6,3302.3,2.427]
[1722272904251,3.03668,3304.0,3303.0,2.699]
[1722272904561,0.01,3304.0,3303.0,2.699]
[1722272904711,0.01,3304.0,3303.0,2.9689]
[1722272904910,3.0367,3304.0,3303.0,2.9689]
[1722272905389,3.0367,3304.0,3302.6,2.699]
[1722272905390,3.02697,3303.7,3302.6,2.699]
[1722272905615,3.02728,3303.3,3302.6,2.699]
[1722272905830,0.605442,3303.3,3302.6,2.699]
[1722272906122,6.05353,3303.9,3302.6,2.699]
[1722272906282,3.02705,3303.6,3302.6,2.699]
[1722272906456,3.02724,3303.4,3302.6,2.699]
[1722272906665,0.605395,3303.5,3302.6,2.699]
[1722272906861,6.05372,3303.8,3303.0,2.699]
[1722272906862,3.02684,3303.8,3303.0,2.699]
[1722272907095,3.02708,3303.6,3303.0,2.699]
[1722272907417,0.01,3304.0,3303.0,2.699]
[1722272907576,3.03668,3304.0,3303.0,2.699]
[1722272907776,3.02688,3303.8,3303.0,2.699]
[1722272907961,3.02691,3303.7,3303.0,2.699]
[1722272908392,3.027,3303.6,3303.0,2.699]
[1722272908823,3.02682,3303.8,3303.0,2.699]
[1722272908824,6.05371,3303.8,3303.0,2.699]
[1722272908963,6.05372,3303.8,3303.0,2.699]
[1722272909166,3.02691,3303.7,3303.0,2.699]
[1722272909809,6.0539,3303.7,3303.0,2.699]
[1722272910015,0.606372,3303.8,3302.8,0.00738254]
[1722272910213,3.02734,3303.3,3302.8,0.00738254]
[1722272910510,3.02742,3303.2,3302.8,0.00738254]
[1722272910815,3.02745,3303.2,3302.8,0.00738254]
[1722272911100,3.02751,3303.1,3302.8,0.00738254]
[1722272911318,3.330321,3303.0,3302.8,0.00738254]
[1722272911581,3.02764,3302.9,3302.8,0.00738254]
[1722272911889,3.202,3303.6,3302.8,0.00738254]
[1722272912094,3.02764,3302.9,3302.8,0.00738254]
[1722272912323,3.02751,3303.1,3302.8,0.00738254]
[1722272912630,3.02755,3303.0,3302.8,0.00738254]
[1722272913192,3.02764,3302.9,3302.8,0.00738254]
[1722272913840,3.02743,3303.2,3302.8,0.00738254]
[1722272914200,3.02723,3303.4,3302.8,0.00738254]
[1722272914705,3.0271,3303.5,3302.8,0.00738254]
[1722272914920,3.02706,3303.6,3302.8,0.00738254]
[1722272915221,3.0271,3303.5,3302.8,0.00738254]
[1722272915388,3.02723,3303.4,3302.8,0.00738254]
[1722272915592,6.357213,3303.4,3302.8,0.00738254]
[1722272915836,3.69881131,3303.9,3302.8,0.00738254]
[1722272915837,3.02703,3303.6,3302.8,0.00738254]
[1722272916335,0.67206131,3303.9,3302.8,0.00738254]
[1722272916336,3.02718,3303.4,3302.8,0.00738254]
[1722272916538,3.02702,3303.6,3302.8,0.00738254]
[1722272916740,3.02747,3303.1,3302.8,0.00738254]
[1722272916906,3.02752,3303.1,3302.8,0.00738254]
[1722272917124,3.02746,3303.1,3302.8,0.00738254]
[1722272917322,3.632938,3303.1,3302.8,0.00738254]
[1722272917647,3.02761,3303.0,3302.8,0.00738254]
[1722272917933,3.02742,3303.2,3302.8,0.00738254]
[1722272917934,3.02745,3303.2,3302.8,0.00738254]
[1722272918104,3.02723,3303.4,3302.8,0.00738254]
[1722272918310,3.202,3303.8,3302.8,0.00738254]
[1722272918311,3.02754,3303.1,3302.8,0.00738254]
[1722272918638,3.02748,3303.1,3302.8,0.00738254]
[1722272919217,3.02732,3303.3,3302.8,0.00738254]
[1722272919639,3.02714,3303.5,3302.8,0.00738254]
[1722272919795,3.02692,3303.7,3303.0,2.699]
[1722272920002,3.02709,3303.5,3303.0,2.699]
[1722272920235,0.01,3304.0,3302.8,0.00738254]
[1722272920478,3.02733,3303.3,3302.8,0.00738254]
[1722272920655,3.02678,3303.9,3303.1,2.699]
[1722272920830,0.01,3304.0,3303.1,2.699]
[1722272921026,3.0269,3303.8,3303.1,2.699]
[1722272921346,0.01,3304.0,3303.1,2.699]
[1722272921552,3.03663,3304.0,3303.1,2.699]
[1722272921751,3.03663,3304.0,3302.9,2.3698]
[1722272921752,3.03668,3304.0,3303.5,2.699]
[1722272921955,0.01,3304.0,3303.5,2.699]
[1722272922131,3.03665,3304.0,3303.5,2.699]
[1722272922331,0.01,3304.0,3303.5,2.699]
[1722272923074,0.01,3304.0,3303.9,2.699]
[1722272924976,0.14541,3304.5,3303.9,2.699]
[1722272925270,0.14541,3304.5,3303.5,1.5]
[1722272925271,0.14541,3304.5,3304.4,2.699]
[1722272928825,0.00181455,3304.9,3304.4,8.42418]
[1722272928977,0.01,3305.2,3304.8,5.398]
[1722272929302,0.01,3305.2,3304.4,2.4762]
[1722272929303,3.02562,3305.1,3304.4,2.4762]
[1722272929450,0.01,3305.2,3304.2,2.699]
[1722272929451,3.02575,3305.0,3304.2,2.699]
[1722272929659,3.02595,3304.8,3303.8,2.699]
[1722272929965,0.01,3305.2,3304.2,2.699]
[1722272930359,3.0356,3305.2,3304.2,2.699]
[1722272930606,3.02596,3304.8,3304.2,2.699]
[1722272930747,3.02596,3304.8,3303.7,2.4762]
[1722272930748,3.02614,3304.6,3303.8,2.699]
[1722272930950,3.202,3305.1,3303.8,2.699]
[1722272931286,3.02589,3304.9,3303.8,2.699]
[1722272931479,3.0,3305.0,3303.8,2.699]
[1722272931774,3.02609,3304.6,3303.8,2.699]
[1722272931995,3.02617,3304.5,3303.8,2.699]
[1722272932302,3.02642,3304.3,3303.8,2.699]
[1722272932452,3.02621,3304.5,3303.8,2.699]
[1722272932652,3.02584,3304.9,3303.8,2.699]
[1722272932653,3.02636,3304.3,3303.8,2.699]
[1722272932882,3.02636,3304.3,3303.2,2.2623]
[1722272933107,3.02636,3304.3,3303.4,2.699]
[1722272933394,3.02645,3304.2,3303.4,2.699]
[1722272933579,3.02633,3304.4,3303.4,2.699]
[1722272933780,3.02635,3304.3,3303.4,2.699]
[1722272934094,3.02645,3304.2,3303.5,0.292523]
[1722272934405,3.02656,3304.1,3303.4,2.699]
[1722272934567,3.02658,3304.1,3303.2,2.2623]
[1722272934770,6.22822,3304.5,3303.2,2.2623]
[1722272934954,6.202,3304.4,3303.0,2.699]
[1722272935151,3.02705,3303.6,3303.0,2.699]
[1722272935382,4.3722,3304.3,3302.7,2.4557]
[1722272935383,3.02717,3303.5,3302.7,2.4557]
[1722272935592,3.02716,3303.5,3302.7,2.4557]
[1722272935798,3.202,3304.0,3302.7,2.4557]
[1722272935799,3.02696,3303.7,3302.7,2.4557]
[1722272935974,3.02696,3303.7,3302.8,2.70438254]
[1722272936190,3.02713,3303.5,3302.8,2.70438254]
[1722272936783,3.02733,3303.3,3302.8,0.00738254]
[1722272936979,3.02755,3303.0,3302.8,0.00738254]
[1722272937276,3.02738,3303.2,3302.8,0.00738254]
[1722272937490,3.02757,3303.0,3302.8,0.00738254]
[1722272938210,3.02738,3303.2,3302.8,0.00738254]
[1722272938413,3.02747,3303.1,3302.8,0.00738254]
[1722272938566,3.02722,3303.4,3302.8,0.00738254]
[1722272938770,3.02751,3303.1,3302.8,0.00738254]
[1722272939493,3.02738,3303.2,3302.8,0.00738254]
[1722272939827,3.02764,3302.9,3302.8,0.00738254]
[1722272940103,3.02755,3303.0,3302.8,0.00738254]
[1722272940407,3.02764,3302.9,3302.8,0.00738254]
[1722272940765,3.0,3303.5,3302.8,0.00738254]
[1722272940766,9.22864,3304.0,3302.8,2.70438254]
[1722272940966,3.02646,3304.2,3303.4,2.697]
[1722272941166,3.02688,3303.8,3302.8,2.36718254]
[1722272941463,3.02716,3303.5,3302.8,0.00738254]
[1722272941671,3.0272,3303.4,3302.8,0.00738254]
[1722272941977,2.62371244,3303.7,3302.8,0.00738254]
[1722272941978,3.02747,3303.1,3302.8,0.00738254]
[1722272942179,3.02755,3303.0,3302.8,0.00738254]
[1722272942496,3.02747,3303.1,3302.8,0.00738254]
[1722272942868,3.02764,3302.9,3302.8,0.00738254]
[1722272943542,3.633151,3302.9,3302.8,0.00738254]
[1722272944258,0.605511,3302.9,3302.8,0.00738254]
[1722272944672,3.633151,3302.9,3302.8,0.00738254]
[1722272944827,3.02764,3302.9,3302.8,0.00738254]
[1722272945214,3.202,3303.1,3302.8,0.00738254]
[1722272945215,6.22951,3303.1,3302.8,0.00738254]
[1722272945410,3.02757,3303.0,3302.8,0.00738254]
[1722272945610,3.02764,3302.9,3302.8,0.00738254]
[1722272945866,3.953361,3302.9,3302.8,0.00738254]
[1722272946465,0.925721,3302.9,3302.8,0.00738254]
[1722272946624,3.0,3303.4,3302.8,0.00738254]
[1722272946863,2.2962,3304.1,3302.8,0.00738254]
[1722272947046,3.02689,3303.8,3302.8,0.00738254]
[1722272947407,3.02691,3303.7,3302.8,0.00738254]
[1722272947685,3.027,3303.6,3302.8,0.00738254]
[1722272947882,3.202,3304.0,3302.8,0.00738254]
[1722272947883,6.22866,3304.0,3302.8,0.00738254]
[1722272948041,7.081146,3304.0,3302.8,0.00738254]
[1722272948682,3.0,3303.9,3302.8,0.00738254]
[1722272949382,6.02679,3303.9,3302.8,0.00738254]
[1722272949692,3.0,3303.9,3302.8,0.00738254]
[1722272950191,3.02687,3303.8,3302.8,0.00738254]
[1722272950360,3.02692,3303.7,3302.8,0.00738254]
[1722272950560,3.02724,3303.4,3302.8,0.00738254]
[1722272950764,3.02736,3303.2,3302.8,0.00738254]
[1722272951158,3.02751,3303.1,3302.8,0.00738254]
[1722272951790,3.202,3303.4,3302.8,0.00738254]
[1722272951791,3.02744,3303.2,3302.8,0.00738254]
[1722272952151,6.05489,3303.2,3302.8,0.00738254]
[1722272952351,3.02747,3303.1,3302.8,0.00738254]
[1722272953291,3.02755,3303.0,3302.8,0.00738254]
[1722272953499,0.605493,3303.0,3302.8,0.00738254]
[1722272953853,3.633053,3303.0,3302.8,0.00738254]
[1722272954092,3.02764,3302.9,3302.8,0.00738254]
[1722272954512,0.3202,3303.3,3302.8,0.00738254]
[1722272954663,3.02728,3303.3,3302.8,0.00738254]
[1722272954861,3.02747,3303.1,3302.8,0.00738254]
[1722272955603,3.02764,3302.9,3302.8,0.00738254]
[1722272956961,6.05528,3302.9,3302.8,0.00738254]
[1722272958364,3.02764,3302.9,3302.8,0.00738254]
[1722272958569,6.926664,3302.9,3302.8,0.00738254]
[1722272958829,6.05528,3302.9,3302.8,0.00738254]
[1722272959410,3.02749,3303.1,3302.8,0.00738254]
[1722272959702,3.02733,3303.3,3302.8,0.00738254]
[1722272959916,3.02709,3303.5,3302.8,0.00738254]
[1722272960123,3.02608,3304.6,3302.8,0.00738254]
[1722272960124,3.02706,3303.6,3302.8,0.00738254]
[1722272960410,3.02658,3304.1,3302.8,0.00738254]
[1722272960411,3.02709,3303.5,3302.8,0.00738254]
[1722272960722,6.22895,3303.7,3302.8,0.00738254]
[1722272961021,3.0272,3303.4,3302.8,0.00738254]
[1722272961201,3.02742,3303.2,3302.8,0.00738254]
[1722272961366,3.202,3303.5,3302.8,0.00738254]
[1722272961563,6.22917,3303.5,3302.8,0.00738254]
[1722272962015,3.202,3303.5,3302.8,0.00738254]
[1722272962164,6.22909,3303.5,3302.8,0.00738254]
[1722272962528,3.202,3303.6,3302.8,0.00738254]
[1722272962664,6.229,3303.6,3302.8,0.00738254]
[1722272962874,2.6136,3304.0,3302.8,0.00738254]
[1722272962875,6.22863,3304.0,3302.8,0.00738254]
[1722272963069,3.202,3304.0,3302.8,0.00738254]
[1722272963305,6.22863,3304.0,3302.8,0.00738254]
[1722272963518,6.22856,3304.1,3302.8,0.00738254]
[1722272963668,3.02665,3304.0,3302.8,0.00738254]
[1722272963871,3.02681,3303.8,3302.8,0.00738254]
[1722272964124,3.02678,3303.9,3302.8,0.00738254]
[1722272964612,3.02707,3303.6,3302.8,0.00738254]
[1722272964778,3.202,3303.5,3302.8,0.00738254]
[1722272964979,3.752,3303.5,3302.8,0.00738254]
[1722272965788,6.77909,3303.5,3302.8,0.00738254]
[1722272966191,0.83309,3304.0,3302.8,0.00738254]
[1722272966434,3.02724,3303.4,3302.8,0.00738254]
[1722272967070,3.02728,3303.3,3302.8,0.00738254]
[1722272967519,6.2291,3303.5,3302.8,0.00738254]
[1722272967828,3.02719,3303.4,3302.8,0.00738254]
[1722272967974,3.202,3303.5,3302.8,0.00738254]
[1722272968713,3.202,3303.7,3302.8,0.00738254]
[1722272969032,6.22891,3303.7,3302.8,0.00738254]
[1722272969168,6.22872,3303.9,3302.8,0.00738254]
[1722272969385,3.02681,3303.8,3302.8,0.00738254]
[1722272970232,3.202,3303.9,3302.8,0.00738254]
[1722272970415,6.22878,3303.9,3302.8,0.00738254]
[1722272970821,3.02624,3304.5,3302.9,5.50418]
[1722272971027,6.22808,3304.6,3303.0,3.99896014]
[1722272971549,3.202,3304.6,3303.0,3.99896014]
[1722272971692,3.202,3304.6,3303.0,7.02643014]
[1722272972017,3.202,3304.6,3303.0,3.99896014]
[1722272972223,3.202,3304.6,3303.1,0.64755601]
[1722272972395,3.02634,3304.4,3303.1,0.64755601]
[1722272972736,6.2281,3304.6,3303.0,0.06054384]
[1722272972905,6.2281,3304.6,3303.0,3.08808384]
[1722272973106,6.2281,3304.6,3302.9,2.4766]
[1722272973107,3.02626,3304.5,3302.9,2.4766]
[1722272973333,3.202,3304.8,3303.0,3.088044]
[1722272973666,6.22795,3304.8,3303.1,3.5838444]
[1722272973928,2.4069,3305.2,3303.2,0.0605399]
[1722272974109,5.43247,3305.2,3303.4,3.02711]
[1722272974305,5.43247,3305.2,3303.3,2.3866]
[1722272974306,3.02602,3304.7,3303.3,2.3866]
[1722272974553,2.4069,3305.2,3302.8,0.00738254]
[1722272974554,3.202,3304.4,3302.8,0.00738254]
[1722272974759,3.202,3303.6,3302.8,0.00738254]
[1722272974892,5.31785,3304.0,3302.8,0.00738254]
[1722272975090,3.02628,3304.4,3302.8,0.00738254]
[1722272975349,2.593802,3304.6,3302.8,0.00738254]
[1722272975504,3.02708,3303.6,3302.8,0.00738254]
[1722272975926,6.22886,3303.8,3302.8,0.00738254]
[1722272976090,3.02664,3304.0,3302.8,0.00738254]
[1722272976300,3.02699,3303.7,3302.8,0.00738254]
[1722272976493,3.202,3303.6,3302.8,0.00738254]
[1722272976811,0.622892,3303.5,3302.8,0.00738254]
[1722272977031,3.650012,3303.5,3302.8,0.00738254]
[1722272977738,0.622892,3303.5,3302.8,0.00738254]
[1722272978425,3.202,3303.6,3302.8,0.00738254]
[1722272978926,6.22883,3303.8,3302.8,0.00738254]
[1722272979127,3.02683,3303.8,3302.8,0.00738254]
[1722272979322,3.02646,3304.2,3302.8,0.00738254]
[1722272979520,3.02682,3303.8,3302.8,0.00738254]
[1722272980438,3.202,3304.0,3302.8,0.00738254]
[1722272980620,3.2855602,3304.5,3302.8,0.00738254]
[1722272980934,6.4875602,3304.5,3302.8,3.09565944]
[1722272981468,3.0259,3304.8,3303.1,2.4429]
[1722272981623,2.2591,3305.1,3303.2,0.06053944]
[1722272981825,3.02617,3304.5,3303.2,0.06053944]
[1722272982024,3.02617,3304.5,3303.1,2.4429]
[1722272982025,3.02655,3304.1,3303.1,2.4429]
[1722272982238,0.302655,3304.0,3303.1,2.4429]
[1722272982487,3.02655,3304.1,3303.1,2.4429]
[1722272983622,3.02664,3304.0,3303.1,2.4429]
[1722272983924,3.0263,3304.4,3303.1,2.4429]
[1722272984475,3.02635,3304.3,3303.1,2.4429]
[1722272984674,3.649185,3304.3,3303.1,2.68719]
[1722272984987,3.02645,3304.2,3303.1,2.68719]
[1722272985475,0.622835,3304.3,3303.1,2.68719]
[1722272986474,3.02627,3304.4,3303.1,2.68719]
[1722272987349,6.22809,3304.6,3303.1,2.68719]
[1722272988274,3.02655,3304.1,3303.1,2.68719]
[1722272988435,3.02655,3304.1,3303.1,2.4429]
[1722272988629,3.02663,3304.0,3303.1,2.4429]
[1722272989032,3.0265,3304.2,3303.1,2.4429]
[1722272989843,3.02668,3304.0,3303.1,2.4429]
[1722272990044,3.02672,3303.9,3303.1,2.4429]
[1722272990367,3.02682,3303.8,3303.1,2.4429]
[1722272990575,3.02705,3303.6,3302.8,0.00738254]
[1722272991029,3.02686,3303.8,3302.8,0.00738254]
[1722272992096,6.22879,3303.9,3302.8,0.00738254]
[1722272992588,3.02679,3303.9,3302.8,0.00738254]
[1722272993794,3.02706,3303.6,3302.8,0.00738254]
[1722272993940,3.02717,3303.5,3302.8,0.00738254]
[1722272994561,3.02723,3303.4,3302.8,0.00738254]
[1722272994773,3.02717,3303.5,3302.8,0.00738254]
[1722272994774,3.0271,3303.5,3302.8,0.00738254]
[1722272996190,3.02661,3304.1,3302.8,0.00738254]
[1722272996402,3.02661,3304.1,3302.8,0.3142245]
[1722272996983,3.02655,3304.1,3302.8,0.25367658]
[1722272997354,3.02659,3304.1,3302.8,0.25367658]
[1722272997544,3.02682,3303.8,3302.8,0.00738254]
[1722272997882,3.02699,3303.7,3302.8,0.00738254]
[1722272998249,3.0,3304.4,3302.8,0.00738254]
[1722272998250,3.02707,3303.6,3302.8,0.00738254]
[1722272998653,3.02691,3303.7,3302.8,0.00738254]
[1722272999592,3.02684,3303.8,3302.8,0.00738254]
[1722273000151,3.202,3303.9,3302.8,0.00738254]
[1722273000391,3.02706,3303.6,3302.8,0.00738254]
[1722273000706,3.02725,3303.4,3302.8,0.00738254]
[1722273001058,3.02709,3303.5,3302.8,0.00738254]
[1722273001253,3.02732,3303.3,3302.8,0.00738254]
[1722273003436,3.02735,3303.3,3302.8,0.00738254]
[1722273003642,3.202,3303.7,3302.8,0.00738254]
[1722273003643,3.02715,3303.5,3302.8,0.00738254]
[1722273004179,3.0271,3303.5,3302.8,0.00738254]
[1722273004446,3.02726,3303.4,3302.8,0.00738254]
[1722273004650,3.02727,3303.3,3302.8,0.00738254]
[1722273005452,3.02701,3303.6,3302.8,0.00738254]
[1722273006145,3.02709,3303.5,3302.8,0.00738254]
[1722273006518,3.02729,3303.3,3302.8,0.00738254]
[1722273006812,3.02709,3303.5,3302.8,0.00738254]
[1722273007064,3.02702,3303.6,3302.8,0.00738254]
[1722273007250,3.02685,3303.8,3302.8,0.00738254]
[1722273007634,3.02711,3303.5,3302.8,0.00738254]
[1722273007836,3.02726,3303.4,3302.8,0.00738254]
[1722273008033,3.02706,3303.6,3302.8,0.00738254]
[1722273009092,3.02742,3303.2,3302.8,0.00738254]
[1722273009735,3.02721,3303.4,3302.8,0.00738254]
[1722273009736,3.02747,3303.1,3302.8,0.00738254]
[1722273010536,3.02764,3302.9,3302.8,0.00738254]
[1722273011185,6.22938,3303.2,3302.8,0.00738254]
[1722273011347,3.02755,3303.0,3302.8,0.00738254]
[1722273011537,3.02764,3302.9,3302.8,0.00738254]
[1722273011737,6.05528,3302.9,3302.8,0.00738254]
[1722273012451,9.25728,3302.9,3302.8,0.00738254]
[1722273013037,12.28492,3302.9,3302.8,0.00738254]
[1722273014487,15.12902,3302.9,3302.8,0.00738254]
[1722273015388,15.12902,3302.9,3300.4,0.93836298]
[1722273015389,3.02859,3301.9,3300.6,2.3343]
[1722273015544,8.87174,3302.9,3300.6,2.3343]
[1722273015545,3.02821,3302.3,3300.6,2.3343]
[1722273015739,3.02846,3302.0,3300.8,2.698]
[1722273016553,3.02858,3301.9,3300.8,2.698]
[1722273018325,3.02837,3302.1,3300.9,0.06058236]
[1722273018486,3.202,3302.4,3300.9,0.06058236]
[1722273018487,3.02846,3302.0,3300.9,0.06058236]
[1722273018683,3.02828,3302.2,3300.9,0.06058236]
[1722273018894,7.37,3302.6,3301.2,2.698]
[1722273018895,3.02808,3302.5,3301.2,2.698]
[1722273019094,3.02812,3302.4,3301.3,0.06057261]
[1722273019590,3.02822,3302.3,3301.3,0.06057261]
[1722273020760,3.0281,3302.4,3301.3,0.06057261]
[1722273020940,3.194,3302.5,3301.0,2.4264]
[1722273021264,3.02843,3302.1,3301.0,2.4264]
[1722273021482,3.02846,3302.0,3301.0,2.4264]
[1722273021972,3.194,3302.5,3301.0,2.4264]
[1722273021973,3.02856,3301.9,3301.0,2.4264]
[1722273022714,3.02858,3301.9,3301.0,2.4264]
[1722273024071,3.02837,3302.1,3301.0,2.48698144]
[1722273024313,3.02804,3302.5,3301.2,2.698]
[1722273024525,3.02804,3302.5,3301.0,2.48698144]
[1722273024526,3.02826,3302.3,3301.0,2.4264]
[1722273024674,3.02856,3301.9,3301.0,2.4264]
[1722273025170,3.02843,3302.1,3301.0,2.4264]
[1722273025774,3.02848,3302.0,3301.0,2.4264]
[1722273025974,3.02857,3301.9,3301.0,2.4264]
[1722273026300,3.02866,3301.8,3301.0,2.4264]
[1722273026688,3.02814,3302.4,3301.0,2.4264]
[1722273026689,3.02898,3301.5,3301.0,2.4264]
[1722273026920,3.02902,3301.4,3300.5,2.2716]
[1722273027083,3.02898,3301.5,3300.5,2.2716]
[1722273027282,3.02874,3301.7,3300.5,2.2716]
[1722273027486,3.0285,3302.0,3300.5,2.2716]
[1722273027688,3.194,3302.3,3300.5,2.2716]
[1722273027689,3.0288,3301.7,3300.5,2.2716]
[1722273027910,3.02847,3302.0,3300.8,2.698]
[1722273028112,3.02868,3301.8,3300.8,2.698]
[1722273028415,3.02847,3302.0,3300.8,2.698]
[1722273028613,3.02847,3302.0,3300.5,2.2716]
[1722273028614,3.02779,3302.8,3301.3,2.2716]
[1722273028773,2.2941,3302.9,3301.3,2.2716]
[1722273028973,3.02826,3302.3,3301.3,2.2716]
[1722273029177,3.02802,3302.5,3301.3,2.33217899]
[1722273029401,3.02785,3302.7,3301.3,2.33217899]
[1722273029606,3.02793,3302.6,3301.3,2.33217899]
[1722273029793,2.3487,3303.4,3301.3,5.33217899]
[1722273029794,3.02779,3302.8,3301.3,5.33217899]
[1722273030020,3.02804,3302.5,3301.3,5.33217899]
[1722273030386,3.02794,3302.6,3301.3,5.33217899]